Workbook

Sheet 4-1 Available-PM
A1: Table 4-1. Summary of Available PM2.5 Emission Control Technologies
A3: Emission Unit | C3: Emission Control Technology
A4: ID | B4: Description
A6: 1, 2 | B6: Simple Cycle Gas Turbine | C6: Low Sulfur Fuel
C7: Low Ash Fuel
C8: Good Combustion Practices
A9: 5, 6 | B9: Combined Cycle Gas Turbine | C9: Low Sulfur Fuel
C10: Good Combustion Practices
A11: 7 | B11: Emergency Generator Engine | C11: Limited Operation
C12: DPF
C13: Low Sulfur Fuel
C14: Low Ash Fuel
C15: Positive Crankcase Ventilation
C16: Good Combustion Practices
A17: 11, 12 | B17: Propane-Fired Boiler | C17: Low Sulfur Fuel
C18: FGR
C19: Good Combustion Practices
A21: Note:
A22: Data are based on a RBLC review from January 1, 2005 through September 15, 2015.

Sheet 4-2 Feasible-PM
A1: Table 4-2. Summary of Technically Feasible PM2.5 Control Technology
A3: Emission Unit | C3: Emission Control Technology
A4: ID | B4: Description
A6: 1, 2 | B6: Simple Cycle Gas Turbine | C6: Good Combustion Practices
A7: 5, 6 | B7: Combined Cycle Gas Turbine | C7: Good Combustion Practices
A8: 7 | B8: Emergency Generator Engine | C8: Limited Operation
C9: DPF
C10: Good Combustion Practices
A11: 11, 12 | B11: Propane-Fired Boiler | C11: Low Sulfur Fuel
C12: Good Combustion Practices
A14: Note:
A15: Data are based on a RBLC review from January 1, 2005 through September 15, 2015.

Sheet 4-3 Ranking-PM
A1: Table 4-3. Ranking of Technically Feasible PM2.5 Emission Control Technology
A3: Emission Unit | C3: Emission Control Technology | D3: Control Efficiency (pct) | E3: PM2.5 Emissions (tpy) | F3: PM2.5 Emission Reduction (tpy)
A4: ID | B4: Description
A6: 7 | B6: Emergency Generator Engine | C6: DPF + Limited Operation + Good Combustion Practices | D6: 85 | E6: =$E$7*(100-D6)/100 -> 0.005311068048 | F6: =$E$7-E6 -> 0.03009605227
C7: Limited Operation + Good Combustion Practices (existing) | D7: 0 | E7: 0.03540712032 | F7: 0
A8: 11, 12 | B8: Propane-Fired Boiler | C8: Low Sulfur Fuel (existing) | D8: 0 | E8: 0.2 | F8: 0
A10: Note:
A11: Data are based on a RBLC review from January 1, 2005 through September 15, 2015.

Sheet 4-4 EU 7 DPF TCI
B1: Table 4-4. Capital Costs for DPF
B2: on the Diesel-Fired Engine (EU ID 7)
J3: Shaded cells indicate user inputs.
B4: Total Capital Investment Determination - DPF | J4: Date:
B5: Project: | D5: GVEA North Pole PM2.5 BACT Analysis - Emergency Generator Engine (EU ID 7) | J5: Prepared By:
J6: Checked By:
J7: Rev:
B8: Capital Costs
B9: DIRECT COSTS | E9: QTY | F9: UNIT | G9: UNIT COST | H9: TOTAL MATERIALS COST | I9: TOTAL LABOR COST
B11: (1) | C11: DPF
C12: (a) | D12: Basic equipment
D13: Total DPF System | E13: 1 | F13: EA | G13: 25954 | H13: =E13*G13 -> 25954
J14: TOTAL = | K14: =SUM(H13:H13) -> 25954
C15: (b) | D15: Instrumentation
D16: Total Instrumentation | F16: EA | H16: =E16*G16 -> 0 | I16: Included in above price
J17: TOTAL = | K17: =SUM(H16:H16) -> 0
C18: (c) | D18: Freight
D19: DPF Freight | E19: 1 | F19: % MATL COST | G19: 0.1 | H19: =G19*G13 -> 2595.4 | I19: -
J20: TOTAL = | K20: =SUM(H19:H19) -> 2595.4
C21: (d) | D21: Labor
D22: Labor - offsite fab | E22: 0 | F22: MH | H22: None required | I22: =E22*G22 -> 0
D23: Labor - onsite | E23: 16 | F23: MH | G23: 105 | I23: =E23*G23 -> 1680
J24: TOTAL = | K24: =SUM(I22:I23) -> 1680
C25: (e) | D25: Vendor representatives fees
D26: Fab Site Vendor Representatives fees (enter no. of days and daily rate) | E26: 0 | F26: Days | I26: =G26*E26 -> 0
D27: Onsite Vendor Representatives fees (enter no. of days and daily rate) | E27: 0 | F27: Days | I27: =G27*E27 -> 0
J28: TOTAL = | K28: =SUM(I26:I27) -> 0
B29: Purchased Equipment and Material Cost (PEMC) | J29: PEMC = | K29: =K14+K17+K20+K24+K28 -> 30229.4
B31: Direct Installation Costs (DIC) | E31: DPF replaces existing silencer, no direct installation costs necessary | J31: DIC = | K31: =0 -> 0
B34: Total Direct Costs (TDC) | J34: TDC = (PEMC) + (DIC) = | K34: =+K29+K31 -> 30229.4
B37: INDIRECT COSTS
B38: (2) | C38: Engineering, Procurement & Construction Support Services | F38: % TDC | I38: =E38*K34 -> 0 | K38: Excluded in this estimate.
B39: (3) | C39: Performance tests | F39: EA | I39: =G39*E39 -> 0 | K39: Excluded in this estimate.
B40: Total Indirect Costs (TIC) | J40: TIC = | K40: =SUM(I38:I39) -> 0
B43: MANAGEMENT AND CONTINGENCY COSTS
B44: (4) | C44: Unit Operator Costs | F44: % TDC | K44: Excluded in this estimate.
B45: (5) | C45: Contingency | F45: 30% PEC | I45: =E45*K34 -> 0 | K45: Excluded in this estimate.
B46: Total Management and Contingency Costs (TM&CC) | J46: TM & CC = | K46: =SUM(I44:I45) -> 0
B49: TOTAL CAPITAL INVESTMENT (TCI) | J49: TCI = (TDC)+(TIC)+(TM&CC) = | K49: =K34+K40+K46 -> 30229.4

Sheet 4-5 EU 7 DPF CE
B1: Table 4-5. Annualized Costs for DPF
B2: on the Diesel-Fired Engine (EU ID 7)
I3: Shaded cells indicate user inputs
B4: Cost Effectiveness Determination - DPF | J4: Date:
B5: Project: | D5: GVEA North Pole PM2.5 BACT Analysis - Emergency Generator Engine (EU ID 7) | J5: Prepared By:
J6: Checked By:
J7: Rev:
B8: Annualized Costs
B9: DIRECT ANNUAL COSTS | E9: QTY | F9: UNIT | G9: UNIT COST | H9: TOTAL MATERIALS COST | I9: TOTAL LABOR COST | K9: TOTAL
B10: (1) | C10: Operating Labor | F10: MH | I10: =E10*G10 -> 0 | K10: =I10 -> 0
B11: (2) | C11: DPF | F11: MH | I11: =E11*G11 -> 0 | K11: =I11 -> 0
B12: (3) | C12: Maintenance Labor | F12: MH | I12: =E12*G12 -> 0 | K12: 0
B13: (4) | C13: Maintenance Materials | F13: LOT | H13: =E13*G13 -> 0 | K13: =H13 -> 0
B15: Total Direct Annual Costs (TDAC) | F15: Excluded in this estimate | J15: TDAC = | K15: =SUM(K10:K13) -> 0
B17: INDIRECT ANNUAL COSTS
B18: (5) | C18: Overhead | F18: MH | H18: Excluded in this estimate. | I18: =E18*G18 -> 0 | K18: =I18 -> 0
B19: (6) | C19: Administrative Charges | F19: MH | H19: Excluded in this estimate. | I19: =E19*G19 -> 0 | K19: =I19 -> 0
B20: (7) | C20: Property tax | H20: Excluded in this estimate.
B21: (8) | C21: Insurance | H21: Excluded in this estimate.
C22: Capital Recovery Factor [see inputs below] | E22: =($E$37/100*POWER((1+($E$37/100)),$E$38))/((POWER(((1+$E$37/100)),$E$38))-1) -> 0.09439292574
B23: (9) | C23: Capital Recovery | J23: CRF * TCI = | K23: =E22*'4-4 EU 7 DPF TCI'!K49 -> 2853.441509
B25: Total Indirect Annual Costs (TIAC) | J25: TIAC = | K25: =SUM(K18:K23) -> 2853.441509
B27: TOTAL ANNUALIZED COSTS (TAC) | J27: TAC = (TDAC) + (TIAC) = | K27: =K15+K25 -> 2853.441509
B29: Cost Effectiveness Summary
B31: TOTAL TONS AVOIDED PER YEAR | J31: = | K31: ='4-3 Ranking-PM'!F6 -> 0.03009605227
B33: COST EFFECTIVENESS ($ PER TON AVOIDED) | J33: (TAC)/(TPY) = | K33: =K27/K31 -> 94811.15608
D36: Data Inputs for Capital Recovery Factor:
D37: Annual Interest Rate (EPA OAQPS Control Cost Manual) | E37: 7 | F37: %
D38: Project Life (EPA OAQPS Control Cost Manual) | E38: 20 | F38: years
D39: Catalyst Life | E39: N/A | F39: years
D40: Asset Utilization | E40: N/A | F40: %

Sheet 4-6 Cost Effectiveness
A1: Table 4-6. GVEA North Pole Facility - PM2.5 BACT Cost Effectiveness
A2: Summary1 for Each Emission Unit
A4: Control Technology Option | B4: PM2.5 Emissions (tpy) | C4: Total Installed Capital ($) | D4: Total Annualized Cost ($/year) | E4: Annual O&M Cost ($/year) | F4: Cost Effectiveness ($/ton PM2.5 removed)
A6: Emergency Generator Engine (EU ID 7)
A7: ='4-3 Ranking-PM'!C6 -> DPF + Limited Operation + Good Combustion Practices | B7: ='4-3 Ranking-PM'!E6 -> 0.005311068048 | C7: ='4-4 EU 7 DPF TCI'!K49 -> 30229.4 | D7: ='4-5 EU 7 DPF CE'!K27 -> 2853.441509 | E7: ~ | F7: ='4-5 EU 7 DPF CE'!K33 -> 94811.15608
A8: Limited Operation + Good Combustion Practices2 (existing) | B8: ='4-3 Ranking-PM'!E7 -> 0.03540712032 | C8: ~ | D8: ~ | E8: ~ | F8: ~
A10: Notes:
A11: 1 All emissions costs are on a per unit basis.
A12: 2 This technology is proposed as the baseline case.

Sheet 4-7 Proposed BACT
A1: Table 4-7. GVEA North Pole Facility - Proposed PM2.5 BACT and Associated
A2: Emission Rate for Each Emission Unit
A4: Emission Unit | C4: Fuel | D4: PM2.5 BACT
A5: ID | B5: Description | D5: Description | E5: Emission Rate1
A7: 1 | B7: Simple Cycle Gas Turbine | C7: Fuel Oil | D7: Good Combustion Practices | E7: 0.12 lb/MMBtu
A8: 2 | B8: Simple Cycle Gas Turbine | C8: Fuel Oil | D8: Good Combustion Practices | E8: 0.12 lb/MMBtu
A9: 5, 6 | B9: Combined Cycle Gas Turbine | C9: LSR | D9: Good Combustion Practices | E9: 0.12 lb/MMBtu
A10: 7 | B10: Emergency Generator Engine | C10: Fuel Oil | D10: Limited Operation + Good Combustion Practices | E10: 0.0022 lb/hp-hr
A11: 11, 12 | B11: Boiler | C11: Propane | D11: Low Sulfur Fuel | E11: 0.7 lb/103 gal
A13: Note:
A14: 1 Emissions are on a per unit basis.
A15: 2 Each proposed BACT is an existing control technology.

Sheet DO NOT INCLUDE - Identified-PM
A1: Table D-1a. Summary of Identified PM2.5 Control Technology - Liquid Fuel-Fired Simple Cycle Turbines > 25 MW (RBLC 15.190)
A3: Pollutant | B3: Control Technology Used | C3: Number of RBLC Entries (11 Total)
A4: PM | B4: None | C4: 8
B5: Good Combustion Practices | C5: 1
B6: Low Ash Fuel | C6: 1
B7: Low Sulfur Fuel | C7: 1
A8: Note: Data is based on a RBLC review from January 1, 2005 through September 15, 2015.
A10: Table D-1b. Summary of Identified PM2.5 Control Technology - Liquid Fuel-Fired Combined Cycle Turbines > 25 MW (RBLC 15.290)
A12: Pollutant | B12: Control Technology Used | C12: Number of RBLC Entries (8 Total)
A13: PM | B13: Good Combustion Practices | C13: 4
B14: None | C14: 3
B15: Low Sulfur Fuel | C15: 3
A16: Note: Data is based on a RBLC review from January 1, 2005 through September 15, 2015.
A18: Table D-1c. Summary of Identified PM2.5 Control Technology - Large Diesel Engines > 500 hp (RBLC 17.110)
A20: Pollutant | B20: Control Technology Used | C20: ="Number of RBLC Entries ("& SUM(C21:C27)& " Total)" -> Number of RBLC Entries (81 Total)
A21: PM | B21: Good Combustion Practices | C21: 27
B22: None | C22: 27
B23: Federal Standards | C23: 13
B24: Limited Operation | C24: 5
B25: Low Sulfur Fuel | C25: 5
B26: Low Ash Fuel | C26: 3
B27: Positive Crankcase Ventilation | C27: 1
A28: Note: Data is based on a RBLC review from January 1, 2005 through September 15, 2015.
A30: Table D-1d. Summary of Identified PM2.5 Control Technology - Natural Gas-Fired Commercial/Institutional Boilers <100 MMBtu/hr (RBLC 13.310)
A32: Pollutant | B32: Control Technology Used | C32: Number of RBLC Entries (65 Total)
A33: PM | B33: Good Control Practices | C33: 27
B34: None | C34: 25 | E34: =(C33+C34+C36) -> 54
B35: Low Sulfur Fuel | C35: 19
B36: Operational Limit | C36: 2
B37: FGR | C37: 1
B38: Baghouse | C38: 1
A39: Note: Data is based on a RBLC review from January 1, 2005 through September 15, 2015.
